fUST/lending_fUST_20250623
["ID","MTS","AMOUNT","RATE_DAILY","PERIOD"]
[367068084,1750645839282,-151.0,0.00021917,2]
[367068085,1750645839292,-500.0,0.00021917,2]
[367068086,1750645839301,-460.0,0.00021917,2]
[367068087,1750645839311,-460.0,0.00021917,2]
[367068088,1750645839320,-460.0,0.00021917,2]
[367068089,1750645839329,-500.0,0.00021917,2]
[367068090,1750645839338,-500.0,0.00021917,2]
[367068091,1750645839347,-460.0,0.00021917,2]
[367068092,1750645839356,-460.0,0.00021917,2]
[367068093,1750645839366,-238.28980001,0.00021917,2]
[367068094,1750645839375,-151.0,0.00021917,2]
[367068095,1750645839384,-151.0,0.00021917,2]
[367068096,1750645839394,-151.0,0.00021917,2]
[367068097,1750645839403,-362.22734498,0.00021917,2]
[367068098,1750645839412,-460.0,0.00021917,2]
[367068099,1750645839421,-460.0,0.00021917,2]
[367068100,1750645839430,-460.0,0.00021917,2]
[367068101,1750645839439,-460.0,0.00021917,2]
[367068102,1750645839448,-460.0,0.00021917,2]
[367068103,1750645839457,-460.0,0.00021917,2]
[367068104,1750645839466,-460.0,0.00021917,2]
[367068105,1750645839476,-314.17734777,0.00021917,2]
[367068106,1750645839485,-460.0,0.00021917,2]
[367068107,1750645839494,-460.0,0.00021917,2]
[367068108,1750645839503,-460.0,0.00021917,2]
[367068109,1750645839512,-465.76904512,0.00021917,2]
[367068110,1750645839522,-190.40750909,0.00021917,2]
[367068111,1750645839531,-460.0,0.00021917,2]
[367068112,1750645839541,-460.0,0.00021917,2]
[367068113,1750645839550,-464.50517288,0.00021917,2]
[367068114,1750645839559,-687.67,0.00021917,2]
[367068115,1750645839568,-460.0,0.00021917,2]
[367068116,1750645839576,-460.0,0.00021917,2]
[367068117,1750645839585,-460.0,0.00021917,2]
[367068118,1750645839594,-460.0,0.00021917,2]
[367068119,1750645839604,-777.13,0.00021917,2]
[367068120,1750645839614,-460.0,0.00021917,2]
[367068121,1750645839623,-460.0,0.00021917,2]
[367068122,1750645839633,-631.81,0.00021917,2]
[367068123,1750645839642,-460.0,0.00021917,2]
[367068124,1750645839651,-534.3414925,0.00021917,2]
[367068125,1750645839660,-944.7,0.00021917,2]
[367068126,1750645839670,-460.0,0.00021917,2]
[367068127,1750645839679,-849.68,0.00021917,2]
[367068128,1750645839689,-460.0,0.00021917,2]
[367068129,1750645839699,-631.78,0.00021917,2]
[367068130,1750645839708,-1164.61,0.00021917,2]
[367068131,1750645839718,-460.0,0.00021917,2]
[367068132,1750645839727,-893.85,0.00021917,2]
[367068133,1750645839736,-460.0,0.00021917,2]
[367068134,1750645839744,-1271.99,0.00021917,2]
[367068135,1750645839754,-460.0,0.00021917,2]
[367068136,1750645839763,-468.98,0.00021917,2]
[367068137,1750645839773,-460.0,0.00021917,2]
[367068138,1750645839782,-460.0,0.00021917,2]
[367068139,1750645839791,-1416.88,0.00021917,2]
[367068140,1750645839800,-460.0,0.00021917,2]
[367068141,1750645839810,-460.0,0.00021917,2]
[367068142,1750645839819,-600.64,0.00021917,2]
[367068143,1750645839828,-460.0,0.00021917,2]
[367068144,1750645839837,-460.0,0.00021917,2]
[367068145,1750645839846,-460.0,0.00021917,2]
[367068146,1750645839855,-472.06652529,0.00021917,2]
[367068147,1750645839864,-824.9,0.00021917,2]
[367068148,1750645839873,-460.0,0.00021917,2]
[367068149,1750645839882,-460.0,0.00021917,2]
[367068150,1750645839891,-460.0,0.00021917,2]
[367068151,1750645839900,-158.29806019,0.00021917,2]
[367068152,1750645839909,-460.0,0.00021917,2]
[367068153,1750645839919,-551.33074097,0.00021917,2]
[367068154,1750645839928,-557.78209572,0.00021917,2]
[367068155,1750645839937,-460.0,0.00021917,2]
[367068156,1750645839947,-460.0,0.00021917,2]
[367068157,1750645839955,-460.0,0.00021917,2]
[367068158,1750645839964,-616.01,0.00021917,2]
[367068159,1750645839973,-460.0,0.00021917,2]
[367068160,1750645839982,-460.0,0.00021917,2]
[367068161,1750645839991,-460.0,0.00021917,2]
[367068162,1750645840000,-460.0,0.00021917,2]
[367068163,1750645840010,-516.24,0.00021917,2]
[367068164,1750645840019,-460.0,0.00021917,2]
[367068165,1750645840029,-460.0,0.00021917,2]
[367068166,1750645840038,-460.0,0.00021917,2]
[367068167,1750645840047,-460.0,0.00021917,2]
[367068168,1750645840056,-460.0,0.00021917,2]
[367068169,1750645840066,-518.66,0.00021917,2]
[367068170,1750645840075,-460.0,0.00021917,2]
[367068171,1750645840084,-460.0,0.00021917,2]
[367068172,1750645840093,-460.0,0.00021917,2]
[367068173,1750645840103,-437.93180543,0.00021917,2]
[367068174,1750645840113,-913.04,0.00021917,2]
[367068175,1750645840123,-460.0,0.00021917,2]
[367068176,1750645840133,-471.31910393,0.00021917,2]
[367068177,1750645840142,-460.0,0.00021917,2]
[367068178,1750645840152,-1044.49,0.00021917,2]
[367068179,1750645840161,-435.87543375,0.00021917,2]
[367068180,1750645840171,-460.6142348,0.00021917,2]
[367068181,1750645840181,-742.39,0.00021917,2]
[367068182,1750645840191,-460.0,0.00021917,2]
[367068183,1750645840200,-460.0,0.00021917,2]
[367068184,1750645840215,-462.22206588,0.00021917,2]
[367068185,1750645840224,-460.0,0.00021917,2]
[367068186,1750645840234,-460.0,0.00021917,2]
[367068187,1750645840243,-460.0,0.00021917,2]
[367068188,1750645840254,-603.32,0.00021917,2]
[367068189,1750645840263,-460.0,0.00021917,2]
[367068190,1750645840283,-460.0,0.00021917,2]
[367068191,1750645840295,-548.7080664,0.00021917,2]
[367068192,1750645840305,-460.0,0.00021917,2]
[367068193,1750645840315,-614.71,0.00021917,2]
[367068194,1750645840325,-463.90927329,0.00021917,2]
[367068196,1750645840335,-460.0,0.00021917,2]
[367068197,1750645840345,-460.0,0.00021917,2]
[367068198,1750645840356,-461.10811048,0.00021917,2]
[367068199,1750645840367,-460.0,0.00021917,2]
[367068200,1750645840377,-460.0,0.00021917,2]
[367068201,1750645840388,-460.0,0.00021917,2]
[367068202,1750645840399,-460.0,0.00021917,2]
[367068203,1750645840411,-500.0,0.00021917,2]
[367068204,1750645840422,-500.0,0.00021917,2]
[367068205,1750645840431,-579.93,0.00021917,2]
[367068206,1750645840441,-500.0,0.00021917,2]
[367068207,1750645840451,-500.0,0.00021917,2]
[367068208,1750645840461,-500.0,0.00021917,2]
[367068209,1750645840471,-460.0,0.00021917,2]
[367068210,1750645840481,-647.0,0.00021917,2]
[367068211,1750645840491,-460.0,0.00021917,2]
[367068212,1750645840501,-460.0,0.00021917,2]
[367068213,1750645840510,-460.0,0.00021917,2]
[367068214,1750645840520,-460.0,0.00021917,2]
[367068215,1750645840530,-514.24,0.00021917,2]
[367068216,1750645840540,-2129.92,0.00021917,2]
[367068217,1750645840549,-460.0,0.00021917,2]
[367068218,1750645840559,-460.0,0.00021917,2]
[367068219,1750645840571,-460.0,0.00021917,2]
[367068220,1750645840581,-460.0,0.00021917,2]
[367068221,1750645840592,-1335.11,0.00021917,2]
[367068222,1750645840603,-460.0,0.00021917,2]
[367068223,1750645840613,-526.17,0.00021917,2]
[367068224,1750645840622,-460.0,0.00021917,2]
[367068225,1750645840632,-460.0,0.00021917,2]
[367068226,1750645840642,-460.0,0.00021917,2]
[367068227,1750645840652,-505.09,0.00021917,2]
[367068228,1750645840662,-906.14,0.00021917,2]
[367068229,1750645840673,-460.0,0.00021917,2]
[367068230,1750645840683,-460.0,0.00021917,2]
[367068231,1750645840692,-460.0,0.00021917,2]
[367068232,1750645840702,-460.0,0.00021917,2]
[367068233,1750645840711,-460.0,0.00021917,2]
[367068234,1750645840722,-758.8,0.00021917,2]
[367068235,1750645840731,-460.0,0.00021917,2]
[367068236,1750645840741,-460.0,0.00021917,2]
[367068237,1750645840751,-393.32755518,0.00021917,2]
[367068238,1750645840761,-460.0,0.00021917,2]
[367068239,1750645840771,-460.0,0.00021917,2]
[367068240,1750645840780,-460.0,0.00021917,2]
[367068241,1750645840790,-460.0,0.00021917,2]
[367068242,1750645840799,-823.18,0.00021917,2]
[367068243,1750645840809,-460.0,0.00021917,2]
[367068244,1750645840819,-460.0,0.00021917,2]
[367068245,1750645840829,-460.0,0.00021917,2]
[367068246,1750645840839,-460.0,0.00021917,2]
[367068247,1750645840849,-2172.65,0.00021917,2]
[367068248,1750645840859,-460.0,0.00021917,2]
[367068249,1750645840868,-3236.91,0.00021917,2]
[367068250,1750645840878,-460.0,0.00021917,2]
[367068251,1750645840895,-342.59476592,0.00021917,2]
[367068252,1750645840904,-601.2,0.00021917,2]
[367068253,1750645840914,-1112.72,0.00021917,2]
[367068254,1750645840925,-460.0,0.00021917,2]
[367068255,1750645840935,-460.0,0.00021917,2]
[367068256,1750645840945,-460.0,0.00021917,2]
[367068257,1750645840955,-460.0,0.00021917,2]
[367068258,1750645840965,-460.0,0.00021917,2]
[367068259,1750645840976,-2249.56,0.00021917,2]
[367068260,1750645840987,-460.0,0.00021917,2]
[367068261,1750645840997,-787.02,0.00021917,2]
[367068262,1750645841008,-574.04,0.00021917,2]
[367068263,1750645841018,-460.0,0.00021917,2]
[367068264,1750645841028,-939.34,0.00021917,2]
[367068265,1750645841038,-154.90412759,0.00021917,2]
[367068266,1750645841048,-460.0,0.00021917,2]
[367068267,1750645841058,-460.0,0.00021917,2]
[367068268,1750645841068,-480.76,0.00021917,2]
[367068269,1750645841078,-1115.52,0.00021917,2]
[367068270,1750645841088,-1026.53,0.00021917,2]
[367068271,1750645841098,-460.0,0.00021917,2]
[367068272,1750645841108,-460.0,0.00021917,2]
[367068273,1750645841118,-460.0,0.00021917,2]
[367068274,1750645841127,-460.0,0.00021917,2]
[367068275,1750645841137,-460.0,0.00021917,2]
[367068276,1750645841147,-460.0,0.00021917,2]
[367068277,1750645841157,-460.0,0.00021917,2]
[367068278,1750645841167,-1110.03,0.00021917,2]
[367068279,1750645841177,-1328.0,0.00021917,2]
[367068280,1750645841186,-460.0,0.00021917,2]
[367068281,1750645841196,-460.0,0.00021917,2]
[367068282,1750645841207,-460.0,0.00021917,2]
[367068283,1750645841220,-460.0,0.00021917,2]
[367068284,1750645841231,-460.0,0.00021917,2]
[367068285,1750645841241,-460.0,0.00021917,2]
[367068286,1750645841251,-460.0,0.00021917,2]
[367068287,1750645841471,-460.0,0.00021917,2]
[367068288,1750645841481,-460.0,0.00021917,2]
[367068289,1750645841491,-460.0,0.00021917,2]
[367068290,1750645841500,-1436.46,0.00021917,2]
[367068291,1750645841510,-151.0,0.00021917,2]
[367068292,1750645841520,-151.0,0.00021917,2]
[367068293,1750645841530,-500.0,0.00021917,2]
[367068294,1750645841539,-500.0,0.00021917,2]
[367068295,1750645841549,-460.0,0.00021917,2]
[367068296,1750645841560,-460.0,0.00021917,2]
[367068297,1750645841569,-460.0,0.00021917,2]
[367068298,1750645841579,-500.0,0.00021917,2]
[367068299,1750645841589,-460.0,0.00021917,2]
[367068300,1750645841856,-460.0,0.00021917,2]
[367068301,1750645841867,-460.0,0.00021917,2]
[367068302,1750645841878,-460.0,0.00021917,2]
[367068303,1750645841889,-500.0,0.00021917,2]
[367068304,1750645841900,-460.0,0.00021917,2]
[367068305,1750645841909,-460.0,0.00021917,2]
[367068306,1750645841919,-460.0,0.00021917,2]
[367068307,1750645841929,-1249.1,0.00021917,2]
[367068308,1750645841938,-500.0,0.00021917,2]
[367068309,1750645841948,-460.0,0.00021917,2]
[367068310,1750645841958,-500.0,0.00021917,2]
[367068311,1750645841967,-278.651,0.00021917,2]
[367068312,1750645841977,-151.0,0.00021917,2]
[367068313,1750645841987,-460.0,0.00021917,2]
[367068314,1750645841996,-151.0,0.00021917,2]
[367068315,1750645842007,-460.0,0.00021917,2]
[367068316,1750645842016,-460.0,0.00021917,2]
[367068317,1750645842026,-460.0,0.00021917,2]
[367068318,1750645842036,-500.0,0.00021917,2]
[367068319,1750645842046,-460.0,0.00021917,2]
[367068320,1750645842055,-1855.57,0.00021917,2]
[367068321,1750645842065,-151.0,0.00021917,2]
[367068322,1750645842074,-460.69970972,0.00021917,2]
[367068323,1750645842083,-460.0,0.00021917,2]
[367068324,1750645842093,-151.0,0.00021917,2]
[367068325,1750645842103,-460.0,0.00021917,2]
[367068326,1750645842113,-460.0,0.00021917,2]
[367068327,1750645842123,-460.0,0.00021917,2]
[367068328,1750645842133,-151.0,0.00021917,2]
[367068329,1750645842142,-407.36668967,0.00021917,2]
[367068330,1750645842151,-460.0,0.00021917,2]
[367068331,1750645842161,-980.7,0.00021917,2]
[367068332,1750645842171,-460.0,0.00021917,2]
[367068333,1750645842180,-460.0,0.00021917,2]
[367068334,1750645842190,-460.0,0.00021917,2]
[367068335,1750645842200,-460.0,0.00021917,2]
[367068336,1750645842213,-460.0,0.00021917,2]
[367068337,1750645842223,-460.0,0.00021917,2]
[367068338,1750645842233,-1195.92,0.00021917,2]
[367068339,1750645842242,-1372.37,0.00021917,2]
[367068340,1750645842253,-460.0,0.00021917,2]
[367068341,1750645842262,-824.93,0.00021917,2]
[367068342,1750645842272,-460.0,0.00021917,2]
[367068343,1750645842282,-1536.64,0.00021917,2]
[367068344,1750645842293,-460.0,0.00021917,2]
[367068345,1750645842303,-460.0,0.00021917,2]
[367068346,1750645842313,-219.159322,0.00021917,2]
[367068347,1750645842322,-460.0,0.00021917,2]
[367068348,1750645842332,-1106.97,0.00021917,2]
[367068349,1750645842342,-697.48,0.00021917,2]
[367068350,1750645842352,-697.48,0.00021917,2]
[367068351,1750645842362,-697.48,0.00021917,2]
[367068352,1750645842373,-697.48,0.00021917,2]
[367068353,1750645842383,-697.48,0.00021917,2]
[367068354,1750645842393,-697.48,0.00021917,2]
[367068355,1750645842402,-476.56,0.00021917,2]
[367068356,1750645842413,-697.48,0.00021917,2]
[367068357,1750645842423,-697.48,0.00021917,2]
[367068358,1750645842433,-697.48,0.00021917,2]
[367068359,1750645842443,-697.48,0.00021917,2]
[367068360,1750645842453,-697.48,0.00021917,2]
[367068361,1750645842462,-697.48,0.00021917,2]
[367068362,1750645842472,-697.48,0.00021917,2]
[367068363,1750645842482,-697.48,0.00021917,2]
[367068364,1750645842491,-697.48,0.00021917,2]
[367068365,1750645842501,-697.48,0.00021917,2]
[367068366,1750645842511,-697.48,0.00021917,2]
[367068367,1750645842521,-697.48,0.00021917,2]
[367068368,1750645842531,-697.48,0.00021917,2]
[367068369,1750645842551,-697.48,0.00021917,2]
[367068370,1750645842563,-697.48,0.00021917,2]
[367068371,1750645842574,-697.48,0.00021917,2]
[367068372,1750645842585,-697.48,0.00021917,2]
[367068373,1750645842596,-697.71885188,0.00021917,2]
[367068374,1750645842607,-460.0,0.00021917,2]
[367068375,1750645842617,-460.0,0.00021917,2]
[367068376,1750645842628,-500.0,0.00021917,2]
[367068377,1750645842638,-566.24,0.00021917,2]
[367068378,1750645842648,-2130.22,0.00021917,2]
[367068379,1750645842658,-460.0,0.00021917,2]
[367068380,1750645842668,-460.0,0.00021917,2]
[367068381,1750645842679,-460.0,0.00021917,2]
[367068382,1750645842688,-460.0,0.00021917,2]
[367068383,1750645842699,-460.0,0.00021917,2]
[367068384,1750645842710,-151.0,0.00021917,2]
[367068385,1750645842721,-540.39484939,0.00021917,2]
[367068386,1750645842732,-460.0,0.00021917,2]
[367068387,1750645842741,-572.95212871,0.00021917,2]
[367068388,1750645842752,-460.0,0.00021917,2]
[367068389,1750645842762,-850.29,0.00021917,2]
[367068390,1750645842772,-460.0,0.00021917,2]
[367068391,1750645842783,-383.897675,0.00021917,2]
[367068392,1750645842793,-460.0,0.00021917,2]
[367068393,1750645842803,-460.0,0.00021917,2]
[367068394,1750645842813,-520.51,0.00021917,2]
[367068395,1750645842823,-500.26,0.00021917,2]
[367068396,1750645842833,-460.0,0.00021917,2]
[367068397,1750645842844,-460.0,0.00021917,2]
[367068398,1750645842854,-460.0,0.00021917,2]
[367068399,1750645842864,-460.0,0.00021917,2]
[367068400,1750645842875,-460.0,0.00021917,2]
[367068401,1750645842885,-460.0,0.00021917,2]
[367068402,1750645842895,-1607.62,0.00021917,2]
[367068403,1750645842906,-460.0,0.00021917,2]
[367068404,1750645842917,-1099.68,0.00021917,2]
[367068405,1750645842929,-351.52281316,0.00021917,2]
[367068406,1750645842939,-460.0,0.00021917,2]
[367068407,1750645842950,-460.0,0.00021917,2]
[367068408,1750645842961,-460.0,0.00021917,2]
[367068409,1750645842971,-613.16,0.00021917,2]
[367068410,1750645842981,-460.0,0.00021917,2]
[367068411,1750645842991,-460.0,0.00021917,2]
[367068412,1750645843001,-460.0,0.00021917,2]
[367068413,1750645843011,-460.0,0.00021917,2]
[367068414,1750645843022,-478.15,0.00021917,2]
[367068415,1750645843033,-460.0,0.00021917,2]
[367068416,1750645843042,-2151.5,0.00021917,2]
[367068417,1750645843052,-460.0,0.00021917,2]
[367068418,1750645843062,-460.0,0.00021917,2]
[367068419,1750645843072,-460.0,0.00021917,2]
[367068420,1750645843081,-460.0,0.00021917,2]
[367068421,1750645843091,-460.0,0.00021917,2]
[367068422,1750645843101,-460.0,0.00021917,2]
[367068423,1750645843112,-680.76,0.00021917,2]
[367068424,1750645843122,-460.0,0.00021917,2]
[367068425,1750645843131,-460.0,0.00021917,2]
[367068426,1750645843141,-460.0,0.00021917,2]
[367068427,1750645843151,-3827.24,0.00021917,2]
[367068428,1750645843161,-461.29345221,0.00021917,2]
[367068429,1750645843172,-460.0,0.00021917,2]
[367068430,1750645843183,-460.0,0.00021917,2]
[367068431,1750645843193,-460.0,0.00021917,2]
[367068432,1750645843204,-460.0,0.00021917,2]
[367068433,1750645843217,-151.0,0.00021917,2]
[367068434,1750645843226,-460.0,0.00021917,2]
[367068435,1750645843236,-508.51,0.00021917,2]
[367068436,1750645843246,-154.57556049,0.00021917,2]
[367068437,1750645843257,-5733.14,0.00021917,2]
[367068438,1750645843267,-460.0,0.00021917,2]
[367068439,1750645843277,-460.0,0.00021917,2]
[367068440,1750645843287,-460.0,0.00021917,2]
[367068441,1750645843297,-765.89,0.00021917,2]
[367068442,1750645843306,-310.63104347,0.00021917,2]
[367068443,1750645843316,-987.73,0.00021917,2]
[367068444,1750645843325,-460.0,0.00021917,2]
[367068445,1750645843335,-460.0,0.00021917,2]
[367068446,1750645843344,-460.0,0.00021917,2]
[367068447,1750645843354,-460.0,0.00021917,2]
[367068448,1750645843363,-460.0,0.00021917,2]
[367068449,1750645843373,-460.0,0.00021917,2]
[367068450,1750645843382,-420.68461077,0.00021917,2]
[367068451,1750645843392,-460.0,0.00021917,2]
[367068452,1750645843403,-730.66,0.00021917,2]
[367068453,1750645843416,-460.0,0.00021917,2]
[367068454,1750645843427,-460.0,0.00021917,2]
[367068455,1750645843438,-460.0,0.00021917,2]
[367068456,1750645843448,-1131.63,0.00021917,2]
[367068457,1750645843457,-460.0,0.00021917,2]
[367068458,1750645843467,-225.69960162,0.00021917,2]
[367068459,1750645843477,-460.0,0.00021917,2]
[367068460,1750645843487,-460.0,0.00021917,2]
[367068461,1750645843497,-460.0,0.00021917,2]
[367068462,1750645843507,-646.44,0.00021917,2]
[367068463,1750645843517,-507.03226586,0.00021917,2]
[367068464,1750645843527,-532.5020589,0.00021917,2]
[367068465,1750645843537,-460.0,0.00021917,2]
[367068466,1750645843547,-6983.22,0.00021917,2]
[367068467,1750645843557,-460.0,0.00021917,2]
[367068468,1750645843567,-460.0,0.00021917,2]
[367068469,1750645843576,-519.84,0.00021917,2]
[367068470,1750645843586,-460.0,0.00021917,2]
[367068471,1750645843600,-460.0,0.00021917,2]
[367068472,1750645843610,-460.0,0.00021917,2]
[367068473,1750645843621,-460.0,0.00021917,2]
[367068474,1750645843631,-460.0,0.00021917,2]
[367068475,1750645843642,-460.0,0.00021917,2]
[367068476,1750645843652,-764.34,0.00021917,2]
[367068477,1750645843662,-460.0,0.00021917,2]
[367068479,1750645843672,-945.7,0.00021917,2]
[367068481,1750645843682,-460.0,0.00021917,2]
[367068484,1750645843691,-460.0,0.00021917,2]
[367068486,1750645843702,-151.0,0.00021917,2]
[367068488,1750645843712,-848.98,0.00021917,2]
[367068490,1750645843723,-460.0,0.00021917,2]
[367068492,1750645843733,-460.0,0.00021917,2]
[367068493,1750645843743,-460.0,0.00021917,2]
[367068494,1750645843753,-780.76,0.00021917,2]
[367068496,1750645843763,-774.05,0.00021917,2]
[367068497,1750645843774,-552.36,0.00021917,2]
[367068498,1750645843784,-2357.58,0.00021917,2]
[367068499,1750645843794,-460.0,0.00021917,2]
[367068500,1750645843804,-474.29,0.00021917,2]
[367068501,1750645843814,-460.0,0.00021917,2]
[367068502,1750645843824,-358.15001501,0.00021917,2]
[367068503,1750645843834,-460.0,0.00021917,2]
[367068504,1750645843844,-460.0,0.00021917,2]
[367068505,1750645843854,-460.0,0.00021917,2]
[367068506,1750645843864,-463.18,0.00021917,2]
[367068507,1750645843874,-460.0,0.00021917,2]
[367068508,1750645843884,-460.0,0.00021917,2]
[367068509,1750645843894,-460.0,0.00021917,2]
[367068510,1750645843903,-460.0,0.00021917,2]
[367068511,1750645843913,-574.21,0.00021917,2]
[367068512,1750645843923,-6510.75,0.00021917,2]
[367068513,1750645843933,-1303.4,0.00021917,2]
[367068514,1750645843943,-460.0,0.00021917,2]
[367068515,1750645843954,-460.0,0.00021917,2]
[367068516,1750645843963,-460.0,0.00021917,2]
[367068517,1750645843973,-5468.3,0.00021917,2]
[367068518,1750645843983,-460.0,0.00021917,2]
[367068519,1750645843993,-460.0,0.00021917,2]
[367068520,1750645844003,-460.0,0.00021917,2]
[367068521,1750645844013,-2696.0,0.00021917,2]
[367068522,1750645844023,-790.04,0.00021917,2]
[367068523,1750645844033,-151.0,0.00021917,2]
[367068524,1750645844042,-460.0,0.00021917,2]
[367068525,1750645844053,-460.0,0.00021917,2]
[367068526,1750645844063,-460.0,0.00021917,2]
[367068527,1750645844072,-560.66925553,0.00021917,2]
[367068528,1750645844082,-460.0,0.00021917,2]
[367068529,1750645844091,-460.0,0.00021917,2]
[367068530,1750645844101,-460.0,0.00021917,2]
[367068531,1750645844111,-151.0,0.00021917,2]
[367068532,1750645844120,-252.796361,0.00021917,2]
[367068533,1750645844129,-151.0,0.00021917,2]
[367068534,1750645844139,-460.0,0.00021917,2]
[367068535,1750645844148,-461.78707432,0.00021917,2]
[367068536,1750645844158,-500.0,0.00021917,2]
[367068537,1750645844167,-1286.35,0.00021917,2]
[367068538,1750645844176,-500.0,0.00021917,2]
[367068539,1750645844186,-252.796361,0.00021917,2]
[367068540,1750645844195,-1733.76,0.00021917,2]
[367068542,1750645844204,-460.0,0.00021917,2]
[367068544,1750645844215,-460.0,0.00021917,2]
[367068546,1750645844224,-467.83724032,0.00021917,2]
[367068548,1750645844236,-500.0,0.00021917,2]
[367068549,1750645844245,-460.0,0.00021917,2]
[367068550,1750645844255,-460.0,0.00021917,2]
[367068551,1750645844264,-771.37,0.00021917,2]
[367068552,1750645844274,-460.0,0.00021917,2]
[367068553,1750645844284,-460.0,0.00021917,2]
[367068554,1750645844293,-151.0,0.00021917,2]
[367068555,1750645844391,-151.0,0.00021917,2]
[367068556,1750645844401,-460.0,0.00021917,2]
[367068557,1750645844410,-151.0,0.00021917,2]
[367068558,1750645844419,-591.53,0.00021917,2]
[367068559,1750645844428,-460.0,0.00021917,2]
[367068560,1750645844437,-869.11,0.00021917,2]
[367068561,1750645844446,-151.0,0.00021917,2]
[367068562,1750645844455,-500.0,0.00021917,2]
[367068563,1750645844465,-462.8313835,0.00021917,2]
[367068564,1750645844474,-460.0,0.00021917,2]
[367068565,1750645844483,-657.46,0.00021917,2]
[367068566,1750645844493,-460.0,0.00021917,2]
[367068567,1750645844502,-533.04,0.00021917,2]
[367068568,1750645844510,-929.61,0.00021917,2]
[367068569,1750645844519,-500.0,0.00021917,2]
[367068570,1750645844529,-1224.74,0.00021917,2]
[367068571,1750645844538,-151.0,0.00021917,2]
[367068572,1750645844547,-151.0,0.00021917,2]
[367068573,1750645844556,-500.0,0.00021917,2]
[367068574,1750645844566,-1125.21,0.00021917,2]
[367068575,1750645844575,-460.0,0.00021917,2]
[367068576,1750645844584,-460.0,0.00021917,2]
[367068577,1750645844594,-464.38153812,0.00021917,2]
[367068578,1750645844604,-466.34562027,0.00021917,2]
[367068579,1750645844613,-811.56,0.00021917,2]
[367068580,1750645844622,-460.0,0.00021917,2]
[367068581,1750645844631,-460.0,0.00021917,2]
[367068582,1750645844641,-460.0,0.00021917,2]
[367068583,1750645844651,-1181.54,0.00021917,2]
[367068584,1750645844660,-460.0,0.00021917,2]
[367068585,1750645844670,-460.0,0.00021917,2]
[367068586,1750645844680,-460.0,0.00021917,2]
[367068587,1750645844689,-460.0,0.00021917,2]
[367068588,1750645844698,-694.28,0.00021917,2]
[367068589,1750645844708,-460.0,0.00021917,2]
[367068590,1750645844717,-449.40386311,0.00021917,2]
[367068591,1750645844726,-777.86,0.00021917,2]
[367068592,1750645844736,-460.0,0.00021917,2]
[367068593,1750645844746,-460.0,0.00021917,2]
[367068594,1750645844756,-460.0,0.00021917,2]
[367068595,1750645844767,-460.0,0.00021917,2]
[367068596,1750645844776,-271.278913,0.00021917,2]
[367068597,1750645844785,-460.0,0.00021917,2]